[Event "Open Nuevo Centro. Jornada 1"]
[Site "Chess.com"]
[Date "2020.06.19"]
[Round "2"]
[White "Gutierrez Lacambra, Jose Antonio"]
[Black "Simarro Peir�, Andr�s"]
[Result "0-1"]
[WhiteElo "1247"]
[BlackElo "999"]
[TimeControl "180+2"]
[EndTime "10:51:59 PDT"]
[Termination "Victoria de AndresSP24 por tiempo"]

1. c4 {[%clk 0:03:01.8]} 1... e5 {[%clk 0:02:56.8]} 2. g3 {[%clk 0:03:01.8]}
2... Nf6 {[%clk 0:02:51.7]} 3. Bg2 {[%clk 0:03:01.7]} 3... Bc5 {[%clk
0:02:49.5]} 4. Nc3 {[%clk 0:03:01]} 4... O-O {[%clk 0:02:40.3]} 5. e3 {[%clk
0:02:58.9]} 5... Nc6 {[%clk 0:02:36.4]} 6. Nge2 {[%clk 0:02:58.9]} 6... d6
{[%clk 0:02:34.4]} 7. O-O {[%clk 0:02:57.7]} 7... Be6 {[%clk 0:02:25]} 8. d4
{[%clk 0:02:58.3]} 8... exd4 {[%clk 0:02:24.3]} 9. exd4 {[%clk 0:02:59.3]} 9...
Re8 {[%clk 0:01:57.6]} 10. dxc5 {[%clk 0:02:58.9]} 10... Bxc4 {[%clk 0:01:56.9]}
11. Re1 {[%clk 0:02:46]} 11... dxc5 {[%clk 0:01:52.6]} 12. Qxd8 {[%clk
0:02:27.4]} 12... Raxd8 {[%clk 0:01:51.2]} 13. Be3 {[%clk 0:02:23.4]} 13... Nb4
{[%clk 0:01:43.9]} 14. Rad1 {[%clk 0:02:15.8]} 14... Rxd1 {[%clk 0:01:36.6]} 15.
Rxd1 {[%clk 0:02:16.8]} 15... Nc2 {[%clk 0:01:32.6]} 16. Nf4 {[%clk 0:01:52.5]}
16... h6 {[%clk 0:01:19.1]} 17. Bxc5 {[%clk 0:01:50.9]} 17... b6 {[%clk
0:01:09.8]} 18. Be3 {[%clk 0:01:35.8]} 18... Nxe3 {[%clk 0:01:08.6]} 19. fxe3
{[%clk 0:01:35.3]} 19... Rxe3 {[%clk 0:01:09.8]} 20. Kf2 {[%clk 0:01:22.5]}
20... Re8 {[%clk 0:01:06.8]} 21. Bc6 {[%clk 0:00:54.3]} 21... Re5 {[%clk
0:00:45.9]} 22. Re1 {[%clk 0:00:54.2]} 22... Ng4+ {[%clk 0:00:42.8]} 23. Kg2
{[%clk 0:00:34.2]} 23... Ne3+ {[%clk 0:00:36.5]} 24. Rxe3 {[%clk 0:00:34.6]}
24... Rxe3 {[%clk 0:00:33.4]} 25. Kf2 {[%clk 0:00:31.9]} 25... Re7 {[%clk
0:00:27.5]} 26. Bd5 {[%clk 0:00:24.5]} 26... Ba6 {[%clk 0:00:21.3]} 27. b3
{[%clk 0:00:09.3]} 27... Rd7 {[%clk 0:00:19.6]} 28. Bc4 {[%clk 0:00:09.4]} 28...
Bxc4 {[%clk 0:00:19.1]} 29. bxc4 {[%clk 0:00:10.4]} 29... Rd2+ {[%clk
0:00:19.4]} 30. Ke3 {[%clk 0:00:09]} 30... Rc2 {[%clk 0:00:16.5]} 31. Nb5 {[%clk
0:00:08.6]} 31... Rxc4 {[%clk 0:00:14.5]} 32. Nxa7 {[%clk 0:00:08.7]} 32... Rc2
{[%clk 0:00:14.9]} 33. a4 {[%clk 0:00:09.3]} 33... Rxh2 {[%clk 0:00:14.5]} 34.
Nc6 {[%clk 0:00:08.9]} 34... Ra2 {[%clk 0:00:14.4]} 35. a5 {[%clk 0:00:08.9]}
35... bxa5 {[%clk 0:00:13.6]} 36. Nd5 {[%clk 0:00:08.4]} 36... a4 {[%clk
0:00:13.8]} 37. Ncb4 {[%clk 0:00:06.6]} 37... Rb2 {[%clk 0:00:13.9]} 38. Nc6
{[%clk 0:00:03.1]} 38... a3 {[%clk 0:00:13.7]} 0

[Event "Open Nuevo Centro. Jornada 1"]
[Site "Chess.com"]
[Date "2020.06.19"]
[Round "2"]
[White "Gukasov, Artem"]
[Black "Blanco Solaz, Ram�n"]
[Result "0-1"]
[WhiteElo "1563"]
[BlackElo "1983"]
[TimeControl "180+2"]
[EndTime "10:52:14 PDT"]
[Termination "Victoria de Rbs77 por jaque mate"]

1. e4 {[%clk 0:03:01.9]} 1... c5 {[%clk 0:03:01.2]} 2. Nf3 {[%clk 0:03:02.2]}
2... g6 {[%clk 0:03:02.5]} 3. d4 {[%clk 0:03:03.4]} 3... cxd4 {[%clk 0:03:04.4]}
4. Nxd4 {[%clk 0:02:57]} 4... Nc6 {[%clk 0:03:05.7]} 5. Be3 {[%clk 0:02:55.9]}
5... Nf6 {[%clk 0:03:03.4]} 6. Nc3 {[%clk 0:02:55.8]} 6... Bg7 {[%clk
0:03:02.5]} 7. Be2 {[%clk 0:02:52.4]} 7... O-O {[%clk 0:03:00.8]} 8. O-O {[%clk
0:02:52.6]} 8... d5 {[%clk 0:03:01.6]} 9. exd5 {[%clk 0:02:52.2]} 9... Nxd5
{[%clk 0:03:02.5]} 10. Nxd5 {[%clk 0:02:51.9]} 10... Qxd5 {[%clk 0:03:04.4]} 11.
c4 {[%clk 0:02:50]} 11... Qa5 {[%clk 0:02:54.8]} 12. Nxc6 {[%clk 0:02:36.1]}
12... bxc6 {[%clk 0:02:56.7]} 13. Bd4 {[%clk 0:02:35]} 13... e5 {[%clk 0:02:56]}
14. Bc3 {[%clk 0:02:34.8]} 14... Qc7 {[%clk 0:02:48.9]} 15. Qc2 {[%clk
0:02:30.5]} 15... Rd8 {[%clk 0:02:45.7]} 16. Bf3 {[%clk 0:02:27.9]} 16... f5
{[%clk 0:02:38.5]} 17. g3 {[%clk 0:02:21.5]} 17... e4 {[%clk 0:02:37.5]} 18. Bg2
{[%clk 0:02:22]} 18... Be6 {[%clk 0:02:35.5]} 19. b3 {[%clk 0:02:18.5]} 19...
Rd3 {[%clk 0:02:36.5]} 20. Bxg7 {[%clk 0:02:18.9]} 20... Qxg7 {[%clk 0:02:38.4]}
21. Rad1 {[%clk 0:02:18.4]} 21... Rad8 {[%clk 0:02:40]} 22. Rxd3 {[%clk
0:02:19.1]} 22... Rxd3 {[%clk 0:02:27.7]} 23. Rd1 {[%clk 0:02:17.7]} 23... Qc3
{[%clk 0:02:03.3]} 24. Qxc3 {[%clk 0:02:08.5]} 24... Rxc3 {[%clk 0:02:05.2]} 25.
Rd6 {[%clk 0:02:05.4]} 25... Kf7 {[%clk 0:01:59.6]} 26. Rxc6 {[%clk 0:01:48]}
26... Rc1+ {[%clk 0:01:51.2]} 27. Bf1 {[%clk 0:01:47.2]} 27... f4 {[%clk
0:01:48.4]} 28. Rc7+ {[%clk 0:01:21.7]} 28... Kf6 {[%clk 0:01:48.9]} 29. Rxh7
{[%clk 0:01:13.6]} 29... e3 {[%clk 0:01:46.8]} 30. fxe3 {[%clk 0:01:04.7]} 30...
fxe3 {[%clk 0:01:42.1]} 31. Kg2 {[%clk 0:01:04.2]} 31... Bg4 {[%clk 0:01:43.5]}
32. Rxa7 {[%clk 0:00:21.1]} 32... e2 {[%clk 0:01:44.6]} 33. Bxe2 {[%clk
0:00:21.8]} 33... Bxe2 {[%clk 0:01:46.5]} 34. Kf2 {[%clk 0:00:22.2]} 34... Rc2
{[%clk 0:01:45.4]} 35. Ke3 {[%clk 0:00:21.5]} 35... Bg4 {[%clk 0:01:45.6]} 36.
h4 {[%clk 0:00:21.1]} 36... Ke5 {[%clk 0:01:43.6]} 37. Ra5+ {[%clk 0:00:21.2]}
37... Kd6 {[%clk 0:01:43.4]} 38. Rd5+ {[%clk 0:00:21]} 38... Ke6 {[%clk
0:01:42]} 39. Kf4 {[%clk 0:00:21.7]} 39... Bf5 {[%clk 0:01:41.9]} 40. a3 {[%clk
0:00:17.9]} 40... Rf2+ {[%clk 0:01:41.1]} 41. Kg5 {[%clk 0:00:18.8]} 41... Rf3
{[%clk 0:01:42.5]} 42. Kh6 {[%clk 0:00:18.5]} 42... Rxb3 {[%clk 0:01:41.4]} 43.
a4 {[%clk 0:00:12.4]} 43... Rb4 {[%clk 0:01:41.2]} 44. a5 {[%clk 0:00:12.8]}
44... Rxc4 {[%clk 0:01:42.3]} 45. Rb5 {[%clk 0:00:13.7]} 45... Ra4 {[%clk
0:01:43.1]} 46. Rb6+ {[%clk 0:00:14.2]} 46... Ke5 {[%clk 0:01:44.4]} 47. a6
{[%clk 0:00:15.4]} 47... Ke4 {[%clk 0:01:43.1]} 48. Rb5 {[%clk 0:00:15.2]} 48...
Kf3 {[%clk 0:01:43.2]} 49. Rb3+ {[%clk 0:00:15.3]} 49... Kg4 {[%clk 0:01:44.1]}
50. Rb6 {[%clk 0:00:15]} 50... Kxg3 {[%clk 0:01:44.9]} 51. Kg7 {[%clk
0:00:14.8]} 51... Kxh4 {[%clk 0:01:45.4]} 52. Kh6 {[%clk 0:00:15.9]} 52... g5
{[%clk 0:01:45.5]} 53. a7 {[%clk 0:00:14.3]} 53... Rxa7 {[%clk 0:01:45.4]} 54.
Rb4+ {[%clk 0:00:13.1]} 54... g4 {[%clk 0:01:46.2]} 55. Rb7 {[%clk 0:00:08.6]}
55... Ra6+ {[%clk 0:01:47.1]} 56. Kg7 {[%clk 0:00:08.6]} 56... g3 {[%clk
0:01:48.1]} 57. Rb6 {[%clk 0:00:09.5]} 57... Rxb6 {[%clk 0:01:48.1]} 58. Kg8
{[%clk 0:00:10.5]} 58... g2 {[%clk 0:01:48.6]} 59. Kh8 {[%clk 0:00:12.4]} 59...
Rb8+ {[%clk 0:01:48]} 60. Kg7 {[%clk 0:00:12.3]} 60... g1=Q+ {[%clk 0:01:49]}
61. Kf6 {[%clk 0:00:13.7]} 61... Qg5+ {[%clk 0:01:48.1]} 62. Ke5 {[%clk
0:00:15.6]} 62... Bh3+ {[%clk 0:01:48.2]} 63. Kd4 {[%clk 0:00:17.5]} 63... Rb4+
{[%clk 0:01:49]} 64. Kd3 {[%clk 0:00:18.8]} 64... Qg3+ {[%clk 0:01:49.5]} 65.
Kc2 {[%clk 0:00:20.7]} 65... Rf4 {[%clk 0:01:48.2]} 66. Kd1 {[%clk 0:00:21.6]}
66... Rf2 {[%clk 0:01:48.3]} 67. Ke1 {[%clk 0:00:22.2]} 67... Qg1# {[%clk
0:01:49.9]} 0

[Event "Open Nuevo Centro. Jornada 1"]
[Site "Chess.com"]
[Date "2020.06.19"]
[Round "2"]
[White "Hassomal Daswani, Birjkumar"]
[Black "Deusa Ballesteros, Lucas "]
[Result "1-0"]
[WhiteElo "1837"]
[BlackElo "1452"]
[TimeControl "180+2"]
[EndTime "10:52:27 PDT"]
[Termination "Victoria de daz000007 por jaque mate"]

1. e4 {[%clk 0:03:01.9]} 1... e6 {[%clk 0:03:00.1]} 2. d4 {[%clk 0:03:00.5]}
2... d5 {[%clk 0:03:00.3]} 3. e5 {[%clk 0:03:00.9]} 3... c5 {[%clk 0:03:00.5]}
4. c3 {[%clk 0:03:01.6]} 4... Nc6 {[%clk 0:03:00.6]} 5. Nf3 {[%clk 0:03:02.9]}
5... Nge7 {[%clk 0:02:59.5]} 6. Be2 {[%clk 0:03:04.1]} 6... Nf5 {[%clk
0:02:59.7]} 7. O-O {[%clk 0:03:03.7]} 7... cxd4 {[%clk 0:02:57.2]} 8. cxd4
{[%clk 0:03:03.1]} 8... Be7 {[%clk 0:02:57.4]} 9. g4 {[%clk 0:03:02.7]} 9... Nh4
{[%clk 0:02:55.7]} 10. Nxh4 {[%clk 0:03:02.5]} 10... Bxh4 {[%clk 0:02:55.3]} 11.
a3 {[%clk 0:03:03]} 11... a5 {[%clk 0:02:54.4]} 12. Be3 {[%clk 0:03:00.7]} 12...
O-O {[%clk 0:02:51.6]} 13. Nc3 {[%clk 0:03:01]} 13... Bd7 {[%clk 0:02:43.7]} 14.
Bd3 {[%clk 0:03:00.8]} 14... g6 {[%clk 0:02:39.5]} 15. Bh6 {[%clk 0:02:55.5]}
15... Re8 {[%clk 0:02:36.9]} 16. Ne2 {[%clk 0:02:55.6]} 16... Bg5 {[%clk
0:02:35.5]} 17. Bxg5 {[%clk 0:02:50.8]} 17... Qxg5 {[%clk 0:02:37.4]} 18. h3
{[%clk 0:02:49.3]} 18... h5 {[%clk 0:02:36.4]} 19. Qc1 {[%clk 0:02:44.2]} 19...
Qxc1 {[%clk 0:02:32.8]} 20. Raxc1 {[%clk 0:02:43.9]} 20... hxg4 {[%clk
0:02:33.3]} 21. hxg4 {[%clk 0:02:41.5]} 21... Rac8 {[%clk 0:02:32.4]} 22. Kg2
{[%clk 0:02:41.9]} 22... Na7 {[%clk 0:02:26.3]} 23. Ng1 {[%clk 0:02:37.1]} 23...
Rxc1 {[%clk 0:02:25.3]} 24. Rxc1 {[%clk 0:02:36.4]} 24... Rc8 {[%clk 0:02:27.2]}
25. Rxc8+ {[%clk 0:02:36]} 25... Bxc8 {[%clk 0:02:25.3]} 26. Kf3 {[%clk
0:02:36.5]} 26... b5 {[%clk 0:02:23.3]} 27. Ke3 {[%clk 0:02:36.8]} 27... Kf8
{[%clk 0:02:23]} 28. g5 {[%clk 0:02:36.2]} 28... Bd7 {[%clk 0:02:22.3]} 29. Nf3
{[%clk 0:02:36.8]} 29... Nc8 {[%clk 0:02:22]} 30. Nh2 {[%clk 0:02:37.2]} 30...
Nb6 {[%clk 0:02:18.3]} 31. b3 {[%clk 0:02:37.5]} 31... a4 {[%clk 0:02:17.3]} 32.
b4 {[%clk 0:02:37.1]} 32... Nc4+ {[%clk 0:02:17.2]} 33. Bxc4 {[%clk 0:02:37.8]}
33... dxc4 {[%clk 0:02:11.4]} 34. Ng4 {[%clk 0:02:37.1]} 34... Bc6 {[%clk
0:02:09.1]} 35. Kd2 {[%clk 0:02:35]} 35... Ke7 {[%clk 0:02:09.4]} 36. Nf6 {[%clk
0:02:33.5]} 36... Bf3 {[%clk 0:02:02.8]} 37. Ke3 {[%clk 0:02:32.8]} 37... Bb7
{[%clk 0:02:02.4]} 38. f3 {[%clk 0:02:31.2]} 38... Ba8 {[%clk 0:02:01.5]} 39.
Ne4 {[%clk 0:02:31.4]} 39... Bc6 {[%clk 0:01:48.8]} 40. Nd6 {[%clk 0:02:29.2]}
40... Kf8 {[%clk 0:01:41.1]} 41. f4 {[%clk 0:02:28.4]} 41... Ke7 {[%clk
0:01:41.6]} 42. Kd2 {[%clk 0:02:28.7]} 42... Kf8 {[%clk 0:01:40.9]} 43. Kc3
{[%clk 0:02:29.2]} 43... Ke7 {[%clk 0:01:41.2]} 44. Nxc4 {[%clk 0:02:29.6]}
44... bxc4 {[%clk 0:01:40.4]} 45. Kxc4 {[%clk 0:02:30.4]} 45... Kd7 {[%clk
0:01:40.5]} 46. b5 {[%clk 0:02:31.1]} 46... Bd5+ {[%clk 0:01:35.2]} 47. Kb4
{[%clk 0:02:31.8]} 47... Kc7 {[%clk 0:01:36.6]} 48. Kxa4 {[%clk 0:02:32.2]}
48... Kb6 {[%clk 0:01:37]} 49. Kb4 {[%clk 0:02:33.1]} 49... Bf3 {[%clk
0:01:35.2]} 50. a4 {[%clk 0:02:33.8]} 50... Be2 {[%clk 0:01:29.9]} 51. a5+
{[%clk 0:02:33.4]} 51... Kb7 {[%clk 0:01:30.5]} 52. Kc5 {[%clk 0:02:33.9]} 52...
Bf3 {[%clk 0:01:24.9]} 53. a6+ {[%clk 0:02:25.9]} 53... Ka7 {[%clk 0:01:23.6]}
54. Kd6 {[%clk 0:02:23.3]} 54... Kb6 {[%clk 0:01:22.8]} 55. Ke7 {[%clk 0:02:24]}
55... Kxb5 {[%clk 0:01:22.5]} 56. a7 {[%clk 0:02:23.8]} 56... Kc4 {[%clk
0:01:14.2]} 57. Kxf7 {[%clk 0:02:23]} 57... Kxd4 {[%clk 0:01:14.8]} 58. Kxe6
{[%clk 0:02:22.1]} 58... Ke4 {[%clk 0:01:15.3]} 59. Kf6 {[%clk 0:02:22.5]} 59...
Kxf4 {[%clk 0:01:07.8]} 60. e6 {[%clk 0:02:22.3]} 60... Bc6 {[%clk 0:01:06.2]}
61. e7 {[%clk 0:02:22]} 61... Ke4 {[%clk 0:00:35.6]} 62. a8=Q {[%clk 0:02:16.4]}
62... Bxa8 {[%clk 0:00:35.2]} 63. e8=Q+ {[%clk 0:02:16.2]} 63... Kd3 {[%clk
0:00:37.1]} 64. Qxa8 {[%clk 0:02:16.4]} 64... Kd2 {[%clk 0:00:18.1]} 65. Qf3
{[%clk 0:02:07.4]} 65... Kc1 {[%clk 0:00:20]} 66. Qe2 {[%clk 0:02:07]} 66... Kb1
{[%clk 0:00:21.9]} 67. Kxg6 {[%clk 0:02:07.7]} 67... Ka1 {[%clk 0:00:23.8]} 68.
Kf5 {[%clk 0:02:08.5]} 68... Kb1 {[%clk 0:00:25.7]} 69. g6 {[%clk 0:02:09.5]}
69... Kc1 {[%clk 0:00:27.5]} 70. g7 {[%clk 0:02:10.4]} 70... Kb1 {[%clk
0:00:29.4]} 71. g8=R {[%clk 0:02:10.1]} 71... Kc1 {[%clk 0:00:31.3]} 72. Rg1#
{[%clk 0:02:10.3]} 1

[Event "Open Nuevo Centro. Jornada 1"]
[Site "Chess.com"]
[Date "2020.06.19"]
[Round "2"]
[White "Garcia Trobat, Francisco"]
[Black "Bendayan Claros, Aaron"]
[Result "1-0"]
[WhiteElo "2222"]
[BlackElo "1645"]
[TimeControl "180+2"]
[EndTime "10:52:29 PDT"]
[Termination "Victoria de NoSure por tiempo"]

1. Nf3 {[%clk 0:03:01.9]} 1... d5 {[%clk 0:03:00]} 2. g3 {[%clk 0:03:00.2]} 2...
c6 {[%clk 0:02:58.9]} 3. Bg2 {[%clk 0:03:01.2]} 3... Bg4 {[%clk 0:02:59.9]} 4.
O-O {[%clk 0:03:01.1]} 4... Nd7 {[%clk 0:03:00.9]} 5. d3 {[%clk 0:02:54.9]} 5...
Ngf6 {[%clk 0:02:54.5]} 6. Nbd2 {[%clk 0:02:51.1]} 6... e5 {[%clk 0:02:54.9]} 7.
h3 {[%clk 0:02:51.1]} 7... Bh5 {[%clk 0:02:53.1]} 8. Qe1 {[%clk 0:02:49.5]} 8...
Bd6 {[%clk 0:02:53]} 9. e4 {[%clk 0:02:45.6]} 9... O-O {[%clk 0:02:53.4]} 10. a4
{[%clk 0:02:26.2]} 10... Re8 {[%clk 0:02:51.8]} 11. b3 {[%clk 0:02:21.9]} 11...
Qc7 {[%clk 0:02:47.2]} 12. Bb2 {[%clk 0:02:22.7]} 12... Bg6 {[%clk 0:02:45.6]}
13. Nh4 {[%clk 0:02:22.8]} 13... Rad8 {[%clk 0:02:36.5]} 14. Nxg6 {[%clk
0:02:18.5]} 14... hxg6 {[%clk 0:02:38.4]} 15. Qe2 {[%clk 0:02:14.2]} 15... Qb6
{[%clk 0:02:28.6]} 16. Kh2 {[%clk 0:02:12.1]} 16... Qc7 {[%clk 0:02:04.8]} 17.
h4 {[%clk 0:02:01.7]} 17... Nf8 {[%clk 0:01:57.8]} 18. Bh3 {[%clk 0:02:02.4]}
18... Ne6 {[%clk 0:01:45.9]} 19. Nf3 {[%clk 0:01:53.4]} 19... dxe4 {[%clk
0:01:38]} 20. dxe4 {[%clk 0:01:53.4]} 20... Nc5 {[%clk 0:01:37.6]} 21. Ng5
{[%clk 0:01:51.2]} 21... Nh7 {[%clk 0:01:09.9]} 22. Nxh7 {[%clk 0:01:45.9]}
22... Kxh7 {[%clk 0:01:11.8]} 23. h5 {[%clk 0:01:47.2]} 23... gxh5 {[%clk
0:00:34.7]} 24. Qxh5+ {[%clk 0:01:46.4]} 24... Kg8 {[%clk 0:00:35.9]} 25. Bf5
{[%clk 0:01:44.3]} 25... g6 {[%clk 0:00:31.6]} 26. Qg4 {[%clk 0:01:17.2]} 26...
Kf8 {[%clk 0:00:23.4]} 27. b4 {[%clk 0:00:53.6]} 27... Na6 {[%clk 0:00:14.3]}
28. Bc1 {[%clk 0:00:40.1]} 28... gxf5 {[%clk 0:00:12.7]} 29. Bh6+ {[%clk
0:00:39]} 29... Ke7 {[%clk 0:00:13.3]} 30. exf5 {[%clk 0:00:37.2]} 30... Rg8
{[%clk 0:00:09.5]} 31. f6+ {[%clk 0:00:29.6]} 31... Kxf6 {[%clk 0:00:06.9]} 32.
Qh4+ {[%clk 0:00:28.9]} 32... Ke6 {[%clk 0:00:07.5]} 33. f4 {[%clk 0:00:28.3]}
33... Kd7 {[%clk 0:00:07]} 34. fxe5 {[%clk 0:00:28.2]} 34... Bxe5 {[%clk
0:00:07.3]} 35. Rxf7+ {[%clk 0:00:29.4]} 35... Kc8 {[%clk 0:00:08.1]} 36. Rxc7+
{[%clk 0:00:30.5]} 36... Bxc7 {[%clk 0:00:10]} 37. Qh3+ {[%clk 0:00:29.5]} 37...
Kb8 {[%clk 0:00:10.7]} 38. b5 {[%clk 0:00:30]} 38... Bxg3+ {[%clk 0:00:10.6]}
39. Kh1 {[%clk 0:00:29.3]} 39... Nc7 {[%clk 0:00:08.4]} 40. bxc6 {[%clk
0:00:29.2]} 40... b6 {[%clk 0:00:07.3]} 41. Rb1 {[%clk 0:00:27.7]} 41... Rde8
{[%clk 0:00:05.5]} 42. Qf5 {[%clk 0:00:26.3]} 42... Re2 {[%clk 0:00:04.8]} 43.
Qf7 {[%clk 0:00:21.6]} 43... Rh2+ {[%clk 0:00:03.8]} 44. Kg1 {[%clk 0:00:20.5]}
44... Rh8 {[%clk 0:00:04.2]} 45. Qg7 {[%clk 0:00:21]} 45... Bd6 {[%clk
0:00:03.2]} 46. Qxh8+ {[%clk 0:00:21.5]} 1

[Event "Open Nuevo Centro. Jornada 1"]
[Site "Chess.com"]
[Date "2020.06.19"]
[Round "2"]
[White "Montesinos Diaz, Luis"]
[Black "Mart�nez Carvajal, Juan Francisco"]
[Result "1-0"]
[WhiteElo "1870"]
[BlackElo "1781"]
[TimeControl "180+2"]
[EndTime "10:52:36 PDT"]
[Termination "Victoria de Gwiso_06 por tiempo"]

1. d4 {[%clk 0:03:01.9]} 1... Nf6 {[%clk 0:02:59.7]} 2. Nf3 {[%clk 0:03:01.8]}
2... e6 {[%clk 0:02:58.8]} 3. e3 {[%clk 0:02:43.5]} 3... c5 {[%clk 0:02:54.1]}
4. b3 {[%clk 0:02:36.7]} 4... cxd4 {[%clk 0:02:52.1]} 5. exd4 {[%clk 0:02:35]}
5... Nc6 {[%clk 0:02:40]} 6. Bb2 {[%clk 0:02:24.8]} 6... d5 {[%clk 0:02:19.5]}
7. Nbd2 {[%clk 0:02:13.1]} 7... Bd6 {[%clk 0:02:16.9]} 8. Bd3 {[%clk 0:02:12.6]}
8... O-O {[%clk 0:02:11.9]} 9. O-O {[%clk 0:02:06.4]} 9... Nb4 {[%clk
0:01:55.3]} 10. Be2 {[%clk 0:02:02]} 10... b6 {[%clk 0:01:40.7]} 11. a3 {[%clk
0:02:02.1]} 11... Nc6 {[%clk 0:01:31.5]} 12. c4 {[%clk 0:01:58.6]} 12... Bb7
{[%clk 0:00:49.2]} 13. Qc2 {[%clk 0:01:53.6]} 13... Rc8 {[%clk 0:00:47.7]} 14.
Ne5 {[%clk 0:01:47]} 14... Qe7 {[%clk 0:00:41.3]} 15. f4 {[%clk 0:01:38.5]}
15... Rfd8 {[%clk 0:00:33.2]} 16. Rf3 {[%clk 0:01:30.9]} 16... dxc4 {[%clk
0:00:28.1]} 17. bxc4 {[%clk 0:01:25.1]} 17... Bxe5 {[%clk 0:00:26.4]} 18. fxe5
{[%clk 0:01:24.4]} 18... Ne8 {[%clk 0:00:24.4]} 19. Rh3 {[%clk 0:01:19.6]} 19...
g6 {[%clk 0:00:23.8]} 20. Nf3 {[%clk 0:01:08.6]} 20... Ng7 {[%clk 0:00:18.7]}
21. Qc3 {[%clk 0:01:06.1]} 21... Nf5 {[%clk 0:00:18.6]} 22. d5 {[%clk
0:01:05.2]} 22... exd5 {[%clk 0:00:17.2]} 23. cxd5 {[%clk 0:01:06.3]} 23... Ncd4
{[%clk 0:00:10.3]} 24. Qd2 {[%clk 0:00:56]} 24... Rc2 {[%clk 0:00:08]} 25. Qd1
{[%clk 0:00:26.2]} 25... Rxb2 {[%clk 0:00:09]} 26. Nxd4 {[%clk 0:00:26.2]} 26...
Nxd4 {[%clk 0:00:08.5]} 27. Qxd4 {[%clk 0:00:17.9]} 27... Rxe2 {[%clk
0:00:09.3]} 28. d6 {[%clk 0:00:18.6]} 28... Qe6 {[%clk 0:00:09.4]} 29. Qh4
{[%clk 0:00:16.4]} 29... Rxg2+ {[%clk 0:00:10.2]} 30. Kf1 {[%clk 0:00:15.9]}
30... Qf5+ {[%clk 0:00:11.1]} 31. Ke1 {[%clk 0:00:16.6]} 31... h5 {[%clk
0:00:07.9]} 32. Qxd8+ {[%clk 0:00:17.3]} 32... Kg7 {[%clk 0:00:07.6]} 33. Qf6+
{[%clk 0:00:17.8]} 33... Qxf6 {[%clk 0:00:08.5]} 34. exf6+ {[%clk 0:00:19.3]}
34... Kxf6 {[%clk 0:00:09.8]} 35. Re3 {[%clk 0:00:20]} 35... Bc8 {[%clk
0:00:06.9]} 36. Rd1 {[%clk 0:00:20.7]} 36... Bd7 {[%clk 0:00:07.4]} 37. Re7
{[%clk 0:00:18.2]} 37... Bb5 {[%clk 0:00:07.7]} 38. Rxa7 {[%clk 0:00:17.6]}
38... Rxh2 {[%clk 0:00:05.8]} 39. Re7 {[%clk 0:00:17.6]} 39... Rh1+ {[%clk
0:00:02.8]} 40. Kd2 {[%clk 0:00:17.4]} 40... Rh2+ {[%clk 0:00:03.3]} 41. Kc1
{[%clk 0:00:17.7]} 41... h4 {[%clk 0:00:03.9]} 42. d7 {[%clk 0:00:15.8]} 42...
Bxd7 {[%clk 0:00:04.9]} 43. Rexd7 {[%clk 0:00:16.9]} 43... h3 {[%clk 0:00:05.7]}
44. R7d2 {[%clk 0:00:17.4]} 44... Rxd2 {[%clk 0:00:03.2]} 45. Kxd2 {[%clk
0:00:18.5]} 45... g5 {[%clk 0:00:04.3]} 46. Ke2 {[%clk 0:00:19.6]} 46... g4
{[%clk 0:00:05.2]} 47. Kf2 {[%clk 0:00:20.9]} 47... Kg5 {[%clk 0:00:06.2]} 48.
Kg3 {[%clk 0:00:21.9]} 48... f5 {[%clk 0:00:07]} 49. Rf1 {[%clk 0:00:22.1]}
49... h2 {[%clk 0:00:02.3]} 50. Kxh2 {[%clk 0:00:22.4]} 50... f4 {[%clk
0:00:03.6]} 51. Kg2 {[%clk 0:00:23.4]} 51... Kf5 {[%clk 0:00:02.6]} 52. Re1
{[%clk 0:00:24.1]} 1

[Event "Open Nuevo Centro. Jornada 1"]
[Site "Chess.com"]
[Date "2020.06.19"]
[Round "2"]
[White "Gracia Calvo, Andres"]
[Black "Gerona Maura, Jesus"]
[Result "1-0"]
[WhiteElo "1839"]
[BlackElo "1507"]
[TimeControl "180+2"]
[EndTime "10:52:42 PDT"]
[Termination "Victoria de andresjaque21 por tiempo"]

1. d4 {[%clk 0:03:00]} 1... Nf6 {[%clk 0:03:00.1]} 2. Nf3 {[%clk 0:03:00.9]}
2... g6 {[%clk 0:03:01.1]} 3. Bf4 {[%clk 0:03:02.1]} 3... d6 {[%clk 0:03:01.9]}
4. e3 {[%clk 0:03:03.5]} 4... Bg7 {[%clk 0:03:02.9]} 5. Be2 {[%clk 0:03:05]}
5... Nbd7 {[%clk 0:03:04]} 6. c4 {[%clk 0:03:06.5]} 6... O-O {[%clk 0:03:04.1]}
7. Nc3 {[%clk 0:03:06]} 7... c6 {[%clk 0:03:05.1]} 8. h3 {[%clk 0:03:07.1]} 8...
Qb6 {[%clk 0:03:05.2]} 9. Qc2 {[%clk 0:03:06.2]} 9... a5 {[%clk 0:03:06]} 10.
O-O {[%clk 0:03:06.5]} 10... Re8 {[%clk 0:03:05.7]} 11. Rac1 {[%clk 0:03:03.4]}
11... e5 {[%clk 0:03:05.5]} 12. Bh2 {[%clk 0:02:50.4]} 12... e4 {[%clk
0:02:58.2]} 13. Nd2 {[%clk 0:02:50.8]} 13... d5 {[%clk 0:02:58.6]} 14. cxd5
{[%clk 0:02:50.1]} 14... cxd5 {[%clk 0:02:59.6]} 15. Na4 {[%clk 0:02:42.3]}
15... Qb4 {[%clk 0:02:45.2]} 16. a3 {[%clk 0:02:36.5]} 16... Qe7 {[%clk
0:02:44.3]} 17. Qc7 {[%clk 0:02:32.1]} 17... b6 {[%clk 0:02:11.7]} 18. Bb5
{[%clk 0:02:13.6]} 18... Ba6 {[%clk 0:02:05.9]} 19. Bxa6 {[%clk 0:02:00.5]}
19... Rxa6 {[%clk 0:02:05.6]} 20. Rc6 {[%clk 0:01:46.9]} 20... Raa8 {[%clk
0:01:40.7]} 21. Nxb6 {[%clk 0:01:38.9]} 21... Nxb6 {[%clk 0:01:37.1]} 22. Qxe7
{[%clk 0:01:38.6]} 22... Rxe7 {[%clk 0:01:36.5]} 23. Rxb6 {[%clk 0:01:39.6]}
23... Nd7 {[%clk 0:01:29.9]} 24. Rb7 {[%clk 0:01:35.1]} 24... Rc8 {[%clk
0:01:27.3]} 25. Bd6 {[%clk 0:01:25.5]} 25... Ree8 {[%clk 0:01:13.3]} 26. Rxd7
{[%clk 0:01:23.5]} 26... Rc2 {[%clk 0:01:13.8]} 27. Nb3 {[%clk 0:01:23]} 27...
Rxb2 {[%clk 0:01:14]} 28. Nxa5 {[%clk 0:01:23.5]} 28... Ra8 {[%clk 0:01:12.9]}
29. Nc6 {[%clk 0:01:23.3]} 29... Rb6 {[%clk 0:01:06.1]} 30. Ne7+ {[%clk
0:01:15.5]} 30... Kh8 {[%clk 0:01:02.6]} 31. Bc5 {[%clk 0:01:15.2]} 31... Rb2
{[%clk 0:00:59.5]} 32. Nxd5 {[%clk 0:01:12.1]} 32... f5 {[%clk 0:00:50.4]} 33.
Nf4 {[%clk 0:01:02.9]} 33... g5 {[%clk 0:00:41.8]} 34. Ne6 {[%clk 0:01:03.2]}
34... Bf6 {[%clk 0:00:42.9]} 35. g3 {[%clk 0:00:54.7]} 35... Re8 {[%clk
0:00:35.3]} 36. Nc7 {[%clk 0:00:53.9]} 36... Rc8 {[%clk 0:00:34.8]} 37. Nd5
{[%clk 0:00:54.4]} 37... Bg7 {[%clk 0:00:29.1]} 38. Kg2 {[%clk 0:00:54.3]} 38...
f4 {[%clk 0:00:28.5]} 39. gxf4 {[%clk 0:00:54.8]} 39... gxf4 {[%clk 0:00:28.3]}
40. Nxf4 {[%clk 0:00:55.7]} 40... Rg8 {[%clk 0:00:26.2]} 41. Kh2 {[%clk
0:00:55.6]} 41... Bh6 {[%clk 0:00:23.4]} 42. Ne6 {[%clk 0:00:53.9]} 42... Bxe3
{[%clk 0:00:19.2]} 43. d5 {[%clk 0:00:48]} 43... Bxc5 {[%clk 0:00:16.7]} 44.
Nxc5 {[%clk 0:00:48.6]} 44... e3 {[%clk 0:00:14.8]} 45. Re7 {[%clk 0:00:43.4]}
45... exf2 {[%clk 0:00:14.2]} 46. Rf7 {[%clk 0:00:41.2]} 46... Rc2 {[%clk
0:00:11.2]} 47. Ne6 {[%clk 0:00:40.6]} 47... Rc3 {[%clk 0:00:06.2]} 48. R1xf2
{[%clk 0:00:39.2]} 48... Rcg3 {[%clk 0:00:05.1]} 49. d6 {[%clk 0:00:37.9]} 49...
Rxa3 {[%clk 0:00:02.9]} 50. d7 {[%clk 0:00:38.4]} 1